bitfinex-derivatives/quotes_BTCF0:USTF0_20241128
["timestamp","ask_amount","ask_price","bid_price","bid_amount"]
[1732775657924,0.3608,95471.0,95470.0,0.052338]
[1732775659232,0.413137,95471.0,95470.0,0.052338]
[1732775660021,0.413137,95471.0,95470.0,0.046338]
[1732775660330,0.413137,95471.0,95470.0,0.047338]
[1732775660828,0.052335,95476.0,95475.0,0.052335]
[1732775662025,0.053335,95476.0,95475.0,0.052335]
[1732775662426,0.053335,95476.0,95475.0,0.24008779]
[1732775662927,0.053335,95476.0,95475.0,0.052335]
[1732775663333,0.053335,95476.0,95475.0,0.24008779]
[1732775664429,0.052335,95476.0,95475.0,0.052335]
[1732775664637,0.001,95476.0,95475.0,0.052335]
[1732775665529,0.12547065,95481.0,95474.0,0.24905279]
[1732775665737,0.3608,95482.0,95480.0,0.052332]
[1732775665932,0.48627065,95482.0,95480.0,0.052332]
[1732775666240,0.3608,95482.0,95480.0,0.052332]
[1732775666737,0.48627065,95482.0,95480.0,0.052332]
[1732775667634,0.3608,95482.0,95480.0,0.052332]
[1732775667941,0.3608,95482.0,95481.0,0.18775279]
[1732775668132,0.3638,95482.0,95481.0,0.18775279]
[1732775668928,0.052334,95478.0,95477.0,0.18775279]
[1732775669539,0.052335,95475.0,95473.0,0.24867862]
[1732775670233,0.052335,95475.0,95474.0,0.1879017]
[1732775670437,0.052335,95475.0,95473.0,0.1879017]
[1732775671439,0.052335,95475.0,95472.0,0.052337]
[1732775671632,0.053335,95475.0,95472.0,0.052337]
[1732775672039,0.052335,95475.0,95472.0,0.052337]
[1732775674435,0.052335,95475.0,95472.0,0.30101562]
[1732775675143,0.052335,95475.0,95472.0,0.29501562]
[1732775676244,0.12542878,95478.0,95473.0,0.31424]
[1732775676542,0.09406384,95482.0,95477.0,0.3608]
[1732775676734,0.09406384,95484.0,95483.0,0.052331]
[1732775676935,0.09406384,95486.0,95485.0,0.05233]
[1732775677134,0.09406384,95487.0,95483.0,0.25049873]
[1732775677335,0.09406384,95487.0,95486.0,0.052329]
[1732775678236,0.09406384,95487.0,95482.0,0.0647]
[1732775678237,0.09406384,95488.0,95487.0,0.052329]
[1732775678437,0.052327,95490.0,95489.0,0.052328]
[1732775679746,0.48686878,95493.0,95492.0,0.052326]
[1732775679937,0.48622878,95493.0,95492.0,0.052326]
[1732775680144,0.413125,95493.0,95492.0,0.052326]
[1732775681340,0.3608,95493.0,95492.0,0.052326]
[1732775682446,0.3618,95493.0,95492.0,0.052326]
[1732775683447,0.48722878,95493.0,95492.0,0.052326]
[1732775685248,0.48722878,95493.0,95492.0,0.24013666]
[1732775685949,0.48722878,95493.0,95492.0,0.052326]
[1732775686153,0.48622878,95493.0,95492.0,0.052326]
[1732775686343,0.48722878,95493.0,95492.0,0.052326]
[1732775686545,0.48722878,95493.0,95492.0,0.24013666]
[1732775686743,0.48722878,95493.0,95492.0,0.052326]
[1732775687443,0.48722878,95493.0,95492.0,0.24013666]
[1732775688341,0.48722878,95493.0,95492.0,0.052326]
[1732775688546,0.48722878,95493.0,95492.0,0.24033327]
[1732775689148,0.48622878,95493.0,95492.0,0.24033327]
[1732775689349,0.3618,95493.0,95492.0,0.052326]
[1732775689656,0.48722878,95493.0,95492.0,0.052326]
[1732775689955,0.48722878,95493.0,95492.0,0.046326]
[1732775691449,0.3618,95493.0,95492.0,0.046326]
[1732775691647,0.45583675,95493.0,95492.0,0.046326]
[1732775692350,0.45483675,95493.0,95492.0,0.047326]
[1732775692854,0.12542878,95497.0,95492.0,0.001]
[1732775693064,0.12542878,95497.0,95496.0,0.052324]
[1732775693259,0.12542878,95499.0,95496.0,0.3608]
[1732775693561,0.052319,95505.0,95503.0,0.052319]
[1732775694457,0.17768815,95505.0,95503.0,0.052319]
[1732775694758,0.17768815,95505.0,95503.0,0.24028113]
[1732775694963,0.17768815,95505.0,95503.0,0.052319]
[1732775695659,0.052319,95505.0,95503.0,0.052319]
[1732775696654,0.052319,95505.0,95503.0,0.053319]
[1732775696854,0.12536915,95508.0,95507.0,0.052318]
[1732775697054,0.17768615,95508.0,95507.0,0.052318]
[1732775697249,0.052317,95508.0,95507.0,0.052318]
[1732775697462,0.17768615,95508.0,95507.0,0.052318]
[1732775697853,0.12531827,95508.0,95503.0,0.001]
[1732775698059,0.0316,95509.0,95503.0,0.001]
[1732775698060,0.052319,95505.0,95503.0,0.001]
[1732775698255,0.052319,95504.0,95503.0,0.001]
[1732775698956,0.413119,95504.0,95503.0,0.001]
[1732775699157,0.3608,95504.0,95503.0,0.05332]
[1732775699363,0.48611101,95504.0,95503.0,0.05232]
[1732775699559,0.3608,95504.0,95503.0,0.05232]
[1732775700058,0.001,95504.0,95498.0,0.18796213]
[1732775700364,0.001,95504.0,95496.0,0.3608]
[1732775700365,0.001,95504.0,95503.0,0.05232]
[1732775700860,0.052316,95511.0,95503.0,0.05232]
[1732775700861,0.033,95515.0,95503.0,0.001]
[1732775701061,0.09397753,95508.0,95506.0,0.54876213]
[1732775701356,0.09397753,95511.0,95506.0,0.3608]
[1732775701562,0.09397753,95512.0,95506.0,0.3608]
[1732775701755,0.09397753,95512.0,95511.0,0.052315]
[1732775701958,0.052315,95513.0,95512.0,0.052315]
[1732775702152,0.1583046,95515.0,95506.0,0.3608]
[1732775702464,0.033,95515.0,95514.0,0.052314]
[1732775702859,0.1253046,95517.0,95516.0,0.052313]
[1732775703050,0.1253046,95518.0,95517.0,0.052312]
[1732775703253,0.1253046,95518.0,95509.0,0.18796213]
[1732775703461,0.09396524,95515.0,95513.0,0.052314]
[1732775703661,0.09396524,95514.0,95513.0,0.052314]
[1732775704566,0.09396524,95518.0,95513.0,9.703e-05]
[1732775704763,0.3608,95522.0,95518.0,0.052312]
[1732775704764,0.09396524,95519.0,95518.0,0.052312]
[1732775704956,0.3608,95522.0,95513.0,9.703e-05]
[1732775705158,0.45473054,95522.0,95514.0,0.00981353]
[1732775705356,0.45473054,95522.0,95515.0,0.033]
[1732775705756,0.002,95518.0,95516.0,0.5468771]
[1732775705964,0.09393054,95524.0,95517.0,0.5676891]
[1732775706157,7.499e-05,95526.0,95525.0,0.052308]
[1732775706565,7.499e-05,95526.0,95525.0,0.37615998]
[1732775706764,0.09392358,95543.0,95528.0,0.12642491]
[1732775707066,0.0325,95544.0,95542.0,0.052298]
[1732775707363,0.09392358,95545.0,95544.0,0.052297]
[1732775707659,0.052296,95547.0,95535.0,0.3608]
[1732775707860,0.052296,95547.0,95545.0,0.052297]
[1732775708066,0.09392358,95549.0,95548.0,0.052295]
[1732775708265,0.09392358,95551.0,95543.0,0.3608]
[1732775708567,0.052289,95559.0,95545.0,0.01403133]
[1732775708568,0.09392358,95559.0,95545.0,0.01403133]
[1732775708765,0.052297,95545.0,95543.0,0.3608]
[1732775709269,0.0313,95544.0,95543.0,0.3608]
[1732775709471,0.0313,95544.0,95543.0,0.3628]
[1732775709859,0.0313,95544.0,95543.0,0.3708]
[1732775710364,0.15472,95552.0,95543.0,0.3628]
[1732775710575,0.052294,95551.0,95543.0,0.3638]
[1732775710775,0.052294,95551.0,95543.0,0.416098]
[1732775711266,0.052294,95551.0,95543.0,0.414098]
[1732775711465,0.18598,95557.0,95545.0,0.052297]
[1732775711662,0.18598,95557.0,95547.0,0.052295]
[1732775712058,0.0313,95557.0,95548.0,0.052295]
[1732775712264,0.0313,95557.0,95543.0,0.3648]
[1732775712459,0.0313,95557.0,95551.0,0.052293]
[1732775713771,0.41309,95558.0,95551.0,0.052293]
[1732775713967,0.05229,95558.0,95551.0,0.052293]
[1732775714161,0.05229,95558.0,95551.0,0.061293]
[1732775714369,9.369e-05,95560.0,95556.0,0.052291]
[1732775714770,9.369e-05,95560.0,95551.0,0.3788]
[1732775714968,9.369e-05,95560.0,95557.0,0.05229]
[1732775715868,9.369e-05,95560.0,95558.0,0.052289]
[1732775717767,9.369e-05,95560.0,95558.0,0.061289]
[1732775718162,9.369e-05,95560.0,95558.0,0.070289]
[1732775719686,9.369e-05,95560.0,95558.0,0.070169]
[1732775720172,9.369e-05,95560.0,95558.0,0.064169]
[1732775721970,9.369e-05,95560.0,95558.0,0.055169]
[1732775722770,0.05238269,95560.0,95558.0,0.009]
[1732775723374,9.369e-05,95560.0,95558.0,0.009]
[1732775723673,9.369e-05,95560.0,95557.0,0.05229]
[1732775724179,9.369e-05,95560.0,95558.0,0.001]
[1732775724766,9.369e-05,95560.0,95557.0,0.05329]
[1732775724972,9.369e-05,95560.0,95558.0,0.01411567]
[1732775725275,9.369e-05,95560.0,95559.0,0.01411567]
[1732775725573,9.369e-05,95560.0,95558.0,0.052289]
[1732775725877,0.3608,95581.0,95576.0,0.05228]
[1732775725878,0.01380477,95578.0,95576.0,0.05228]
[1732775726770,0.3608,95581.0,95576.0,0.05228]
[1732775727272,0.3608,95581.0,95580.0,0.052278]
[1732775727673,0.052273,95589.0,95584.0,0.052275]
[1732775728172,0.052273,95589.0,95585.0,0.052275]
[1732775728675,0.0324,95590.0,95588.0,0.052273]
[1732775729079,0.0324,95590.0,95584.0,0.003]
[1732775729279,0.084673,95590.0,95587.0,0.052274]
[1732775730175,0.0324,95590.0,95585.0,0.002]
[1732775730379,0.052274,95587.0,95585.0,0.002]
[1732775730885,0.0324,95590.0,95585.0,0.054275]
[1732775731072,0.0324,95590.0,95585.0,0.052275]
[1732775731278,0.0324,95590.0,95587.0,0.002]
[1732775732081,0.052272,95591.0,95588.0,0.052273]
[1732775732282,0.052272,95591.0,95585.0,0.002]
[1732775732283,0.3608,95592.0,95591.0,0.052272]
[1732775734184,0.3608,95592.0,95591.0,0.06592317]
[1732775734492,0.3608,95592.0,95591.0,0.052272]
[1732775734884,0.413071,95592.0,95591.0,0.061272]
[1732775735081,0.3608,95592.0,95591.0,0.064272]
[1732775735478,0.3608,95592.0,95591.0,0.27934768]
[1732775736086,0.3608,95592.0,95591.0,0.09188249]
[1732775736287,0.0523872,95594.0,95593.0,0.052271]
[1732775736288,0.0001172,95594.0,95593.0,0.052271]
[1732775736490,0.0001172,95594.0,95593.0,0.07913044]
[1732775736785,0.0001172,95594.0,95593.0,0.32974621]
[1732775736980,0.0001172,95594.0,95593.0,0.07913003]
[1732775737297,0.0001172,95594.0,95593.0,0.07913036]
[1732775737684,0.0001172,95594.0,95593.0,0.06605613]
[1732775738477,0.0001172,95594.0,95593.0,0.06905613]
[1732775738984,0.0001172,95594.0,95593.0,0.08838284]
[1732775739191,0.0001172,95594.0,95593.0,0.09038284]
[1732775739586,0.0001172,95594.0,95593.0,0.01578513]
[1732775740283,0.0001172,95594.0,95593.0,0.01595301]
[1732775740878,0.0001172,95594.0,95593.0,0.01395301]
[1732775741092,0.0001172,95594.0,95593.0,0.01495301]
[1732775741282,0.0001172,95594.0,95593.0,0.06722401]
[1732775741691,0.0001172,95594.0,95593.0,0.08969151]
[1732775741888,0.0001172,95594.0,95593.0,0.27638755]
[1732775742286,0.0001172,95594.0,95593.0,0.08969151]
[1732775742586,0.0001172,95594.0,95593.0,0.09069151]
[1732775743285,0.0001172,95594.0,95593.0,0.08969151]
[1732775743686,0.0001172,95594.0,95593.0,0.08957831]
[1732775744282,0.0001172,95594.0,95593.0,0.35326841]
[1732775744894,0.0001172,95594.0,95593.0,0.10265223]
[1732775745593,0.0001172,95594.0,95593.0,0.10165177]
[1732775745782,0.0001172,95594.0,95593.0,0.10265177]
[1732775745984,0.0001172,95594.0,95593.0,0.11545685]
[1732775746190,0.0001172,95594.0,95593.0,0.6783018]
[1732775746495,0.1,95600.0,95599.0,0.052267]
[1732775746687,0.1,95600.0,95599.0,0.08857431]
[1732775748897,0.1,95600.0,95599.0,0.49213174]
[1732775749487,0.1,95600.0,95599.0,0.24405431]
[1732775749690,0.1,95600.0,95599.0,0.25789497]
[1732775750002,0.1,95600.0,95599.0,0.25189497]
[1732775750295,0.1,95600.0,95599.0,0.50102735]
[1732775750498,0.1,95600.0,95599.0,0.25189497]
[1732775750699,0.1,95600.0,95599.0,0.09641497]
[1732775750891,0.152267,95600.0,95599.0,0.03630731]
[1732775751194,0.152267,95600.0,95599.0,0.06623135]
[1732775751402,0.1,95600.0,95599.0,0.06623135]
[1732775751895,0.1,95600.0,95599.0,0.31542763]
[1732775752487,0.1,95600.0,95599.0,0.06623135]
[1732775753195,0.1,95600.0,95599.0,0.22067135]
[1732775753694,0.1,95600.0,95599.0,0.23374481]
[1732775753899,0.1,95600.0,95599.0,0.23374473]
[1732775754399,0.1,95600.0,95599.0,0.24354973]
[1732775754599,0.1,95600.0,95599.0,0.54701496]
[1732775755299,0.1,95600.0,95599.0,0.23374473]
[1732775755489,0.1,95600.0,95599.0,0.60498965]
[1732775755694,0.1,95600.0,95599.0,0.59102512]
[1732775756603,0.1,95600.0,95599.0,0.43658512]
[1732775756793,0.1,95600.0,95599.0,0.59202512]
[1732775756997,0.1,95600.0,95599.0,0.59242009]
[1732775757203,0.09392358,95623.0,95620.0,0.052256]
[1732775757398,0.09392358,95625.0,95620.0,0.23950892]
[1732775757598,0.09392358,95626.0,95620.0,0.052256]
[1732775757807,0.052252,95627.0,95620.0,0.052256]
[1732775758001,0.09392358,95628.0,95620.0,0.30192656]
[1732775758202,0.3608,95629.0,95627.0,0.052252]
[1732775758605,0.3608,95629.0,95628.0,0.24964408]
[1732775758904,0.052251,95628.0,95627.0,0.24964408]
[1732775759101,0.052253,95625.0,95624.0,0.24964408]
[1732775759299,0.052253,95625.0,95624.0,0.18716869]
[1732775759808,0.052253,95625.0,95623.0,0.052254]
[1732775760898,0.052253,95625.0,95624.0,0.001]
[1732775761897,0.052253,95625.0,95623.0,0.24964408]
[1732775762101,0.052253,95625.0,95623.0,0.001]
[1732775762298,0.0648,95624.0,95623.0,0.001]
[1732775762807,0.0648,95624.0,95623.0,0.18817774]
[1732775763407,0.0648,95624.0,95623.0,0.001]
[1732775763808,0.052255,95621.0,95620.0,0.18717774]
[1732775764107,0.09385443,95622.0,95621.0,0.052255]
[1732775764405,0.0333,95624.0,95621.0,0.052255]
[1732775764608,0.0333,95624.0,95623.0,0.001]
[1732775765104,0.0333,95624.0,95622.0,0.047254]
[1732775765411,0.09384737,95623.0,95622.0,0.047254]
[1732775765597,0.0333,95624.0,95622.0,0.047254]
[1732775766502,0.085554,95624.0,95622.0,0.047254]
[1732775766712,0.09385219,95623.0,95622.0,0.047254]
[1732775767013,0.09385219,95624.0,95622.0,0.047254]
[1732775767207,0.45465219,95629.0,95628.0,0.052251]
[1732775767509,0.3608,95629.0,95628.0,0.052251]
[1732775768410,0.3608,95629.0,95628.0,0.054251]
[1732775768612,0.3608,95629.0,95628.0,0.059251]
[1732775770808,0.3608,95629.0,95628.0,0.007]
[1732775772810,0.3608,95629.0,95628.0,0.19415222]
[1732775773013,0.3608,95629.0,95628.0,0.007]
[1732775774315,0.3608,95629.0,95628.0,0.059251]
[1732775774513,0.3608,95629.0,95628.0,0.0732035]
[1732775776612,0.3608,95629.0,95628.0,0.0209525]
[1732775776922,0.413051,95629.0,95628.0,0.0209525]
[1732775777611,0.3608,95629.0,95628.0,0.0209525]
[1732775779116,0.1253046,95638.0,95628.0,0.0209525]
[1732775779117,0.1203941,95640.0,95628.0,0.0209525]
[1732775779417,0.3608,95646.0,95645.0,0.052242]
[1732775779607,0.15671143,95665.0,95661.0,0.052233]
[1732775779807,0.15671143,95665.0,95645.0,0.880962]
[1732775779808,0.15671143,95665.0,95664.0,0.052232]
[1732775780109,0.18805372,95671.0,95664.0,0.04632638]
[1732775780110,0.05223,95668.0,95664.0,0.04632638]
[1732775780303,0.05223,95668.0,95665.0,0.052231]
[1732775780503,0.36136001,95673.0,95664.0,9.438e-05]
[1732775780719,0.052231,95666.0,95664.0,9.438e-05]
[1732775786309,0.15424,95670.0,95664.0,9.438e-05]
[1732775786513,0.206469,95670.0,95665.0,0.052231]
[1732775786823,0.206469,95670.0,95664.0,9.438e-05]
[1732775786824,0.05223,95668.0,95664.0,9.438e-05]
[1732775787118,0.15671143,95686.0,95678.0,0.052224]
[1732775787321,0.05222,95687.0,95678.0,0.052224]
[1732775788823,0.05222,95687.0,95678.0,0.053224]
[1732775790015,0.3608,95691.0,95679.0,0.3608]
[1732775790216,0.052221,95685.0,95679.0,0.3608]
[1732775790422,0.052221,95684.0,95679.0,0.3608]
[1732775791125,0.3608,95691.0,95679.0,0.3608]
[1732775791126,0.052219,95688.0,95679.0,0.3608]
[1732775791327,0.3608,95691.0,95679.0,0.3608]
[1732775791520,0.3608,95691.0,95679.0,0.3618]
[1732775791521,0.052219,95687.0,95679.0,0.3618]
[1732775793019,0.052219,95687.0,95679.0,0.51604]
[1732775793219,0.05222,95685.0,95679.0,0.51604]
[1732775793622,0.3608,95691.0,95679.0,0.51604]
[1732775793623,0.052222,95683.0,95679.0,0.51604]
[1732775793821,0.052219,95689.0,95684.0,0.052221]
[1732775794026,0.052219,95689.0,95688.0,0.3608]
[1732775794223,0.1,95700.0,95689.0,0.052218]
[1732775794424,0.1,95700.0,95698.0,0.3608]
[1732775794619,0.1,95700.0,95698.0,0.413013]
[1732775794819,0.1,95700.0,95698.0,0.3608]
[1732775795020,0.085513,95699.0,95698.0,0.3548]
[1732775795227,0.0333,95699.0,95698.0,0.3548]
[1732775795936,0.0333,95699.0,95698.0,0.3728]
[1732775796429,0.1,95700.0,95698.0,0.3728]
[1732775796621,0.1,95700.0,95698.0,0.425013]
[1732775797027,0.1,95700.0,95699.0,0.1542]
[1732775798326,0.1,95700.0,95699.0,0.1552]
[1732775798528,0.1,95700.0,95699.0,0.15530267]
[1732775799535,0.1,95700.0,95699.0,0.46878267]
[1732775800730,0.1,95700.0,95699.0,0.15530267]
[1732775800930,0.1,95700.0,95699.0,0.00110267]
[1732775801130,0.1,95700.0,95699.0,0.15514267]
[1732775801638,0.0963,95717.0,95699.0,0.05331467]
[1732775801639,0.052212,95701.0,95699.0,0.05331467]
[1732775802245,0.052212,95701.0,95699.0,0.00110267]
[1732775802432,0.0963,95717.0,95700.0,0.15404]
[1732775802637,0.052207,95710.0,95709.0,0.3608]
[1732775803533,0.0963,95717.0,95709.0,0.3608]
[1732775803730,0.052205,95714.0,95710.0,0.052207]
[1732775804038,0.052206,95712.0,95710.0,0.052207]
[1732775805533,0.052206,95712.0,95710.0,0.061207]
[1732775805933,0.0133527,95726.0,95710.0,0.061207]
[1732775805934,0.00056001,95744.0,95711.0,0.57196119]
[1732775806241,0.052196,95731.0,95729.0,0.3608]
[1732775806644,0.052192,95737.0,95729.0,0.3608]
[1732775806843,0.00010288,95733.0,95721.0,0.3608]
[1732775807042,0.052198,95726.0,95721.0,0.3608]
[1732775807541,0.05229788,95733.0,95726.0,0.052198]
[1732775807735,0.05229788,95733.0,95729.0,0.3698]
[1732775808231,0.00010288,95733.0,95729.0,0.3698]
[1732775808440,0.052196,95731.0,95729.0,0.3698]
[1732775809440,0.052196,95731.0,95729.0,0.3608]
[1732775809844,0.052197,95727.0,95726.0,0.008]
[1732775810144,0.052205,95714.0,95711.0,0.36184]
[1732775810335,0.0634,95713.0,95711.0,0.3608]
[1732775810537,0.115605,95713.0,95711.0,0.3608]
[1732775811738,0.00010288,95733.0,95712.0,0.3608]
[1732775812039,0.052203,95717.0,95712.0,0.60011448]
[1732775812348,0.052203,95717.0,95716.0,0.3608]
[1732775813736,0.059203,95717.0,95716.0,0.3618]
[1732775813930,0.062203,95717.0,95716.0,0.3618]
[1732775814243,0.055203,95717.0,95716.0,0.3608]
[1732775814439,0.056203,95717.0,95716.0,0.3608]
[1732775814643,0.053203,95717.0,95716.0,0.3608]
[1732775814846,0.058203,95717.0,95716.0,0.3608]
[1732775815544,0.053203,95717.0,95716.0,0.3608]
[1732775815738,0.058203,95717.0,95716.0,0.3608]
[1732775816337,0.058203,95717.0,95716.0,0.3108]
[1732775816533,0.062203,95717.0,95716.0,0.3108]
[1732775817344,0.058203,95717.0,95716.0,0.3108]
[1732775817740,0.058203,95717.0,95707.0,0.3623673]
[1732775818040,0.052212,95700.0,95699.0,0.00114267]
[1732775818240,0.052212,95700.0,95689.0,0.3608]
[1732775818241,0.052217,95692.0,95690.0,0.18710948]
[1732775818441,0.052218,95690.0,95689.0,0.3608]
[1732775818842,0.052218,95690.0,95689.0,0.3108]
[1732775819144,0.052218,95690.0,95689.0,0.3108754]
[1732775820236,0.052218,95690.0,95687.0,0.88596]
[1732775820237,0.211218,95690.0,95687.0,0.88596]
[1732775820538,0.211218,95690.0,95687.0,0.88488]
[1732775820539,0.052219,95688.0,95687.0,0.88488]
[1732775820944,0.365739,95688.0,95687.0,0.88488]
[1732775821341,0.365739,95688.0,95687.0,0.88496515]
[1732775821543,0.365739,95688.0,95687.0,0.88596515]
[1732775822150,0.372739,95688.0,95687.0,0.88696515]
[1732775823047,0.059219,95688.0,95687.0,0.88696515]
[1732775823239,0.218259,95688.0,95687.0,0.88696515]
[1732775823439,0.218259,95688.0,95687.0,1.24776515]
[1732775823951,0.219259,95688.0,95687.0,1.24776515]
[1732775824546,0.213259,95688.0,95687.0,1.24676515]
[1732775824768,0.378739,95688.0,95687.0,0.88696515]
[1732775824952,0.532779,95688.0,95687.0,0.88696515]
[1732775825249,0.528779,95688.0,95687.0,0.87996515]
[1732775826455,0.528779,95688.0,95687.0,0.87896515]
[1732775826456,0.527779,95688.0,95687.0,0.87896515]
[1732775826954,0.526779,95688.0,95687.0,0.87996515]
[1732775827147,0.531779,95688.0,95687.0,0.88096515]
[1732775827656,0.532779,95688.0,95687.0,0.88096515]
[1732775828154,0.532779,95688.0,95687.0,1.24176515]
[1732775828350,0.375739,95688.0,95687.0,1.24076515]
[1732775828556,0.529779,95688.0,95687.0,1.24076515]
[1732775828954,0.216259,95688.0,95687.0,1.24076515]
[1732775829451,0.529739,95688.0,95687.0,1.24076515]
[1732775829653,0.529739,95688.0,95687.0,0.87996515]
[1732775829654,0.890539,95688.0,95687.0,0.87996515]
[1732775829844,0.885539,95688.0,95687.0,0.87996515]
[1732775830050,0.890539,95688.0,95687.0,0.87996515]
[1732775830458,0.890539,95688.0,95687.0,0.87896515]
[1732775830459,0.885539,95688.0,95687.0,0.87896515]
[1732775830651,0.891539,95688.0,95687.0,0.87996515]
[1732775831856,0.891539,95688.0,95687.0,0.88096515]
[1732775832554,1.191539,95688.0,95687.0,0.88096515]
[1732775832756,0.885539,95688.0,95687.0,0.87996515]
[1732775832943,1.191539,95688.0,95687.0,0.87996515]
[1732775833150,0.891539,95688.0,95687.0,0.87996515]
[1732775833552,0.885539,95688.0,95687.0,0.87996515]
[1732775833748,0.893539,95688.0,95687.0,0.88096515]
[1732775834455,0.885539,95688.0,95687.0,0.87996515]
[1732775834654,1.189539,95688.0,95687.0,0.87996515]
[1732775835954,1.189539,95688.0,95687.0,0.40916931]
[1732775836256,1.193539,95688.0,95687.0,0.36026931]
[1732775836851,1.193539,95688.0,95687.0,0.35926931]
[1732775836852,0.885539,95688.0,95687.0,0.35926931]
[1732775837049,0.898539,95688.0,95687.0,0.36126931]
[1732775837749,0.898539,95688.0,95687.0,0.36026931]
[1732775837949,0.898539,95688.0,95687.0,0.36126931]
[1732775838348,0.91944431,95688.0,95687.0,0.36126931]
[1732775838753,0.76544431,95688.0,95687.0,0.36126931]
[1732775838957,0.91948431,95688.0,95687.0,0.36126931]
[1732775840061,0.76544431,95688.0,95687.0,0.35526931]
[1732775840260,0.91948431,95688.0,95687.0,0.35526931]
[1732775842251,0.76544431,95688.0,95687.0,0.35526931]
[1732775842657,0.91948431,95688.0,95687.0,0.35526931]
[1732775843159,0.91748431,95688.0,95687.0,0.35426931]
[1732775843355,0.90748431,95688.0,95687.0,0.35226931]
[1732775843665,0.90748431,95688.0,95669.0,0.0327]
[1732775843666,0.052235,95658.0,95657.0,0.00156808]
[1732775843957,0.206275,95658.0,95657.0,0.00156808]
[1732775844656,0.206275,95658.0,95657.0,0.00168903]
[1732775844854,0.206275,95658.0,95657.0,0.00268903]
[1732775845051,0.206275,95658.0,95657.0,0.03362095]
[1732775845667,0.3311312,95658.0,95657.0,0.03362095]
[1732775845850,0.519875,95658.0,95657.0,0.00112095]
[1732775846359,0.524875,95658.0,95657.0,0.00112095]
[1732775846551,0.528875,95658.0,95657.0,0.00012095]
[1732775846953,0.523875,95658.0,95657.0,0.00212095]
[1732775847153,0.519875,95658.0,95657.0,0.00212095]
[1732775847354,0.206275,95658.0,95657.0,0.00412095]
[1732775847956,0.213275,95658.0,95657.0,0.00312095]
[1732775848555,0.220275,95658.0,95657.0,0.00212095]
[1732775849453,0.213275,95658.0,95657.0,0.00112095]
[1732775849659,0.206275,95658.0,95657.0,0.00312095]
[1732775850359,0.213315,95658.0,95657.0,0.00112095]
[1732775850759,0.059235,95658.0,95657.0,0.00112095]
[1732775850960,0.052235,95658.0,95657.0,0.00412095]
[1732775851259,0.15408,95658.0,95657.0,0.00412095]
[1732775851459,9.439e-05,95665.0,95657.0,0.00012095]
[1732775851762,0.052235,95658.0,95657.0,0.00112095]
[1732775851954,0.059235,95658.0,95657.0,0.00212095]
[1732775852763,0.206315,95658.0,95657.0,0.00112095]
[1732775853263,0.212315,95658.0,95657.0,0.00112095]
[1732775853563,0.215315,95658.0,95657.0,0.00112095]
[1732775854066,0.213315,95658.0,95657.0,0.00012095]
[1732775855056,0.052236,95656.0,95655.0,0.35492095]
[1732775855671,0.213315,95658.0,95652.0,0.3608]
[1732775856163,0.213315,95658.0,95654.0,8.312e-05]
[1732775856564,0.214315,95658.0,95654.0,8.312e-05]
[1732775857168,0.052237,95655.0,95654.0,8.312e-05]
[1732775858060,0.365877,95655.0,95654.0,8.312e-05]
[1732775858261,0.365877,95655.0,95654.0,0.00108312]
[1732775859160,0.371877,95655.0,95654.0,0.00208312]
[1732775859862,0.058237,95655.0,95654.0,0.00108312]
[1732775860066,0.058237,95655.0,95654.0,0.00808312]
[1732775860067,0.059237,95655.0,95654.0,0.00808312]
[1732775860267,0.07315352,95655.0,95654.0,0.00808312]
[1732775860464,0.07215352,95655.0,95654.0,0.00108312]
[1732775860662,0.07215352,95655.0,95654.0,0.00308312]
[1732775861167,0.38679352,95655.0,95654.0,0.00108312]
[1732775861371,0.38679352,95655.0,95654.0,0.00508312]
[1732775862173,0.07315352,95655.0,95654.0,0.00508312]
[1732775862464,0.38679352,95655.0,95654.0,0.00508312]
[1732775862961,0.38679352,95655.0,95654.0,0.00108312]
[1732775863163,0.38579352,95655.0,95654.0,0.00108312]
[1732775863358,0.39179352,95655.0,95654.0,0.00208312]
[1732775863868,0.38579352,95655.0,95654.0,0.00608312]
[1732775864272,0.38579352,95655.0,95654.0,0.00108312]
[1732775864572,0.38579352,95655.0,95654.0,0.00208312]
[1732775864766,0.37979352,95655.0,95654.0,0.00108312]
[1732775864971,0.37979352,95655.0,95654.0,1.2e-07]
[1732775865671,0.38079352,95655.0,95654.0,1.2e-07]
[1732775866376,0.32755652,95655.0,95654.0,0.008]
[1732775866676,0.052247,95636.0,95635.0,0.0636]
[1732775866971,0.206327,95636.0,95635.0,0.0636]
[1732775868269,0.212327,95636.0,95635.0,0.0646]
[1732775869378,0.221327,95636.0,95635.0,0.0646]
[1732775870066,0.212327,95636.0,95635.0,0.0586]
[1732775870264,0.221327,95636.0,95635.0,0.0586]
[1732775871275,0.23478683,95636.0,95635.0,0.0586]
[1732775871774,0.23378683,95636.0,95635.0,0.0586]
[1732775872271,0.35879582,95636.0,95635.0,0.0586]
[1732775872471,0.35979582,95636.0,95635.0,0.0586]
[1732775873079,0.23478683,95636.0,95635.0,0.0586]
[1732775875176,0.08070683,95636.0,95635.0,0.0586]
[1732775875372,0.23478683,95636.0,95635.0,0.0586]
[1732775875571,0.23378683,95636.0,95635.0,0.0586]
[1732775876467,0.07770683,95636.0,95635.0,0.0586]
[1732775876674,0.43980001,95643.0,95635.0,0.0586]
[1732775876675,0.12511499,95638.0,95637.0,0.052247]
[1732775876882,0.15408,95641.0,95637.0,0.3608]
[1732775877079,0.15408,95641.0,95639.0,0.18710948]
[1732775877291,0.15408,95641.0,95637.0,0.3608]
[1732775877292,0.15408,95641.0,95640.0,0.052245]
[1732775878883,0.16208,95641.0,95640.0,0.052245]
[1732775880174,0.16208,95641.0,95640.0,0.053245]
[1732775880375,0.008,95641.0,95640.0,0.053245]
[1732775880778,0.008,95641.0,95640.0,0.052245]
[1732775881381,0.59388001,95643.0,95637.0,0.54790948]
[1732775881585,0.052246,95638.0,95637.0,0.3608]
[1732775883072,0.052246,95638.0,95637.0,0.54789205]
[1732775883286,0.052246,95638.0,95637.0,0.3608]
[1732775884285,0.052246,95638.0,95637.0,0.3618]